[Event "Amsterdam Chess Open 2024"]
[Site "Amsterdam"]
[Date "2024.11.02"]
[Round "4.1"]
[White "Grutter, Tim"]
[Black "Van Baar, Esper"]
[Result "1-0"]
[ECO "C84"]
[WhiteElo "2350"]
[BlackElo "2219"]
[Annotator "RC"]
[PlyCount "83"]
[EventDate "2024.10.31"]
[EventType "swiss"]
[EventCountry "NED"]
[SourceTitle "playchess.com"]
[Source "ChessBase"]
[SourceQuality "1"]
[TimeControl "5400+30"]

1. e4 {[%emt 0:00:03]} e5 {[%emt 0:00:10]} 2. Nf3 {[%emt 0:00:05]} Nc6 {[%emt 0:00:07]} 3. Bb5 {[%emt 0:00:05]} a6 {[%emt 0:00:20]} 4. Ba4 {[%emt 0:00:04]} Nf6 {[%emt 0:00:06]} 5. O-O {[%emt 0:00:06]} Nxe4 {[%emt 0:00:19]} 6. d4 {[%emt 0:01:22]} Be7 {[%emt 0:00:09]} 7. Re1 {[%emt 0:00:58]} b5 {[%emt 0:00:15]} 8. Rxe4 {[%emt 0:00:05]} d5 {[%emt 0:00:08]} 9. Nxe5 {[%emt 0:00:04]} Nxe5 {[%emt 0:00:42]} 10. Rxe5 {[%emt 0:00:06]} bxa4 {[%emt 0:00:10]} 11. Qe2 {[%emt 0:00:37]} Be6 {[%emt 0:01:35]} 12. f4 {[%emt 0:01:49]} Kf8 {[%emt 0:04:29]} 13. Qf2 {[%emt 0:14:57]} Bh4 {[%emt 0:09:42]} 14. g3 {[%emt 0:03:55]} Bf6 {[%emt 0:00:20]} 15. Re1 {[%emt 0:09:34]} Qd7 {[%emt 0:11:35]} 16. Nc3 {[%emt 0:03:13]} Kg8 {[%emt 0:01:12]} 17. b3 {[%emt 0:03:24]} c5 {[%emt 0:15:12]} 18. Be3 {[%emt 0:07:59]} a3 {[%emt 0:02:27]} 19. Na4 {[%emt 0:01:58]} cxd4 {[%emt 0:08:57]} 20. Bxd4 {[%emt 0:00:09]} Bxd4 {[%emt 0:00:55]} 21. Qxd4 {[%emt 0:00:06]} Qc6 {[%emt 0:05:00]} 22. Nc5 {[%emt 0:03:07]} h5 {[%emt 0:01:50]} 23. Re5 {[%emt 0:01:19]} g6 {[%emt 0:06:11]} 24. Rae1 {[%emt 0:02:37]} Bf5 {[%emt 0:10:59]} 25. Nxa6 {[%emt 0:11:26]} f6 {[%emt 0:10:44]} 26. Qxd5+ {[%emt 0:08:45]} Qxd5 {[%emt 0:00:02]} 27. Rxd5 {[%emt 0:00:06]} Bxc2 {[%emt 0:01:20]} 28. Nc7 {[%emt 0:00:29]} Rc8 {[%emt 0:01:29]} 29. Nb5 {[%emt 0:00:41]} Bf5 {[%emt 0:08:00]} 30. Nxa3 {[%emt 0:01:27]} Kg7 {[%emt 0:00:33]} 31. Nc4 {[%emt 0:00:29]} Ra8 {[%emt 0:00:23]} 32. Re7+ {[%emt 0:03:45]} Kh6 {[%emt 0:00:32]} 33. Nd6 {[%emt 0:01:28]} Rhf8 {[%emt 0:00:28]} 34. Nxf5+ {[%emt 0:00:27]} gxf5 {[%emt 0:00:05]} 35. Rdd7 {[%emt 0:00:08]} Rh8 {[%emt 0:00:31]} 36. a4 {[%emt 0:00:34]} h4 {[%emt 0:00:36]} 37. Rf7 {[%emt 0:02:29]} Ra6 {[%emt 0:00:17]} 38. b4 {[%emt 0:02:37]} Rc6 {[%emt 0:00:32]} 39. Rc7 {[%emt 0:01:19]} Rd6 {[%emt 0:00:28]} 40. gxh4 {[%emt 0:04:03]} Rg8+ {[%emt 0:01:02]} 41. Kf2 {[%emt 0:00:11]} Kh5 {[%emt 0:00:26]} 42. h3 {[%emt 0:00:31]} 1-0

[Event "Amsterdam Chess Open 2024"]
[Site "Amsterdam"]
[Date "2024.11.02"]
[Round "4.2"]
[White "Bruns, Kai-Christian"]
[Black "Sharan, Rao"]
[Result "0-1"]
[ECO "C05"]
[WhiteElo "2067"]
[BlackElo "2401"]
[Annotator "TA"]
[PlyCount "132"]
[EventDate "2024.10.31"]
[EventType "swiss"]
[EventCountry "NED"]
[SourceTitle "playchess.com"]
[Source "ChessBase"]
[SourceQuality "1"]
[TimeControl "5400+30"]

{[%evp 45,132,-281,-250,-333,-223,-217,-217,-218,-205,-227,-58,-134,0,0,34,0,22,6,38,35,47,60,39,13,74,36,81,-12,-28,0,0,-37,-46,-31,-24,-28,0,-45,0,0,0,0,0,0,0,0,0,0,0,0,0,0,0,0,0,-8,-8,-4,-8,-8,0,-11,-10,-8,0,-39,-8,-8,-8,-8,-8,-8,-8,-8,-8,-632,-631,-29975,-29976,-29976,-29977,-29970,-29972,-29987,-29988,-29988,-29989,-29989,-29990]} 1. e4 {[%emt 0:00:02]} e6 {[%emt 0:00:04]} 2. d4 {[%emt 0:00:04]} d5 {[%emt 0:00:04]} 3. Nd2 {[%emt 0:00:28]} Nf6 {[%emt 0:00:04]} 4. e5 {[%emt 0:00:04]} Nfd7 {[%emt 0:00:03]} 5. c3 {[%emt 0:00:06]} c5 {[%emt 0:00:04]} 6. f4 {[%emt 0:00:05]} Nc6 {[%emt 0:00:03]} 7. Ndf3 {[%emt 0:00:05]} Qb6 {[%emt 0:00:40]} 8. a3 {[%emt 0:00:13]} cxd4 {[%emt 0:01:55]} 9. cxd4 {[%emt 0:00:07]} Na5 {[%emt 0:00:13] C05: French Tarrasch: 3...Nf6 4 e5 Nfd7, 5 f4 and 5 Bd3 sidelines.} 10. h4 {[%emt 0:03:27]} Be7 {[%emt 0:01:13]} 11. h5 {[%emt 0:01:42]} f6 {[%emt 0:04:37]} 12. Bd3 {[%emt 0:03:00]} O-O $146 {[%emt 0:03:40]} ({Predecessor:} 12... Nb3 13. Rb1 a5 14. Be3 Nf8 15. a4 Qb4+ 16. Kf2 Bd7 17. Bc2 Bxa4 18. Ne2 b5 {1-0 Marechal,A (2314)-Deiller,P (2077) Metz op 19th 2001 (4)}) 13. Ne2 {[%emt 0:02:58]} Rf7 {[%emt 0:04:27]} 14. Qc2 {[%emt 0:10:22]} f5 {[%emt 0:03:15]} 15. Rg1 {[%emt 0:05:56]} Nf8 {[%emt 0:01:14]} 16. g4 {[%emt 0:02:16]} fxg4 {[%emt 0:00:44]} 17. Rxg4 {[%emt 0:00:07]} Bd7 {[%emt 0:00:32]} 18. Rb1 {[%emt 0:03:55]} Bb5 {[%emt 0:06:25]} 19. Nc3 {[%emt 0:02:16]} Bxd3 {[%emt 0:00:40]} 20. Qxd3 {[%emt 0:00:02]} Rc8 {[%emt 0:01:26]} 21. f5 {[%emt 0:12:09]} exf5 {[%emt 0:01:08]} 22. Rf4 {[%emt 0:07:41]} Qe6 {[%emt 0:32:13]} 23. Qb5 {[%emt 0:03:19]} Bd8 {[%emt 0:01:26]} 24. Ng1 {[%emt 0:12:06]} a6 {[%emt 0:05:06]} 25. Qd3 {[%emt 0:01:16]} g5 {[%emt 0:06:12]} 26. hxg6 {[%emt 0:01:02]} hxg6 {[%emt 0:00:22]} 27. Rf1 {[%emt 0:01:37]} Qc6 $2 {[%emt 0:08:45]} (27... g5 $19 {...f4 is the strong threat.} 28. Nh3 f4) 28. Nge2 {[%emt 0:03:41]} (28. Nf3 $1 $15) 28... Nc4 {[%emt 0:02:45]} ({Black should try} 28... Nb3 $17 29. Be3 Na5) 29. b3 $11 {[%emt 0:02:05]} Nb6 {[%emt 0:00:04]} 30. Bd2 {[%emt 0:03:23]} Rh7 {[%emt 0:00:08]} 31. Rg1 {[%emt 0:01:39]} (31. Kd1 {feels hotter.} Be7 32. Rg1 Kf7 33. Nf4) 31... Kh8 {[%emt 0:04:22]} (31... Kf7 {seems wilder.} 32. Kd1 Ne6 33. Qg3 Rg7) 32. Kd1 {[%emt 0:00:21]} Rcc7 $1 {[%emt 0:02:31]} 33. Kc2 {[%emt 0:02:46]} Rcg7 {[%emt 0:02:03]} 34. Kb2 {[%emt 0:01:06]} Ne6 {[%emt 0:00:19]} (34... Qd7 $11) 35. Rbf1 {[%emt 0:01:41]} Nd7 {[%emt 0:01:00]} 36. Qf3 {[%emt 0:01:00]} (36. Rc1 $16) 36... Bb6 $11 {[%emt 0:03:02]} 37. Qd3 {[%emt 0:02:06]} (37. Qxd5 $2 {loses.} Rh2 (37... Qxd5 $2 38. Nxd5 Rh2 39. Nxb6 $17) 38. Rh1 Rgh7 39. Rxh2 Rxh2 40. Qxc6 bxc6 $19) (37. Nxd5 $2 Bxd4+ (37... Nxd4 $2 38. Nxd4 Bxd4+ 39. Bc3 $19) 38. Nxd4 Nxd4 $19) ({Of course not} 37. Be3 Nxe5 38. dxe5 d4 39. Qxc6 bxc6 40. Nxd4 (40. Na4 $2 dxe3 41. Nxb6 Rh2 $19) 40... Bxd4 41. Bxd4 Nxd4 $17) 37... Ndf8 {[%emt 0:02:19]} 38. Rh1 {[%emt 0:01:06]} Rxh1 {[%emt 0:01:25]} 39. Rxh1+ {[%emt 0:00:02]} Rh7 {[%emt 0:00:05]} 40. Rg1 {[%emt 0:00:23]} Qd7 {[%emt 0:00:44]} 41. Bg5 {[%emt 0:03:01]} Bd8 {[%emt 0:02:12]} 42. Bxd8 {[%emt 0:00:14]} Qxd8 {[%emt 0:00:01]} 43. Qf3 {[%emt 0:00:25]} Rh2 {[%emt 0:01:41]} 44. Rh1 {[%emt 0:01:01]} Qh4 {[%emt 0:00:01]} 45. Rxh2 {[%emt 0:00:15]} Qxh2 {[%emt 0:00:01]} 46. Qxd5 {[%emt 0:00:31]} f4 {[%emt 0:00:39]} 47. Qf3 {[%emt 0:04:14]} Nxd4 {[%emt 0:00:47]} (47... g5 {looks sharper.} 48. d5 Nd4 49. Qd3 Nxe2 50. Qxe2 Qxe2+ 51. Nxe2 Kg7) 48. Qxf4 {[%emt 0:00:05]} Qxf4 {[%emt 0:00:03]} 49. Nxf4 {[%emt 0:00:03]} g5 {[%emt 0:00:24]} 50. Nd3 {[%emt 0:00:34]} Kg7 {[%emt 0:00:25]} 51. Ne4 {[%emt 0:03:22]} Kg6 {[%emt 0:00:01]} 52. Kc3 {[%emt 0:00:48]} Nfe6 {[%emt 0:00:01]} 53. Ng3 {[%emt 0:00:54]} Nf5 {[%emt 0:01:26]} 54. Ne2 {[%emt 0:00:49]} Kh5 {[%emt 0:00:30]} 55. Kb4 {[%emt 0:01:33]} b6 {[%emt 0:01:10]} 56. a4 {[%emt 0:00:22]} Kg4 {[%emt 0:00:13]} 57. a5 {[%emt 0:00:22]} bxa5+ {[%emt 0:00:07]} 58. Kxa5 {[%emt 0:00:04]} Kf3 {[%emt 0:00:04]} 59. Ng1+ $1 {[%emt 0:02:03]} Ke3 {[%emt 0:00:02]} 60. Ne1 $2 {[%emt 0:00:17][%mdl 8192]} (60. Nb2 $11) 60... g4 $19 {[%emt 0:00:22]} 61. Kxa6 {[%emt 0:00:12]} Nfd4 {[%emt 0:01:33]} 62. b4 {[%emt 0:01:10]} Kf2 {[%emt 0:00:06]} 63. Nd3+ {[%emt 0:00:07]} Kxg1 {[%emt 0:00:37]} 64. Ka5 {[%emt 0:01:36]} g3 {[%emt 0:00:28]} 65. b5 {[%emt 0:00:38]} Kf1 {[%emt 0:00:06]} 66. b6 {[%emt 0:00:31]} g2 {[%emt 0:00:06]} 0-1

[Event "Amsterdam Chess Open 2024"]
[Site "Amsterdam"]
[Date "2024.11.02"]
[Round "4.3"]
[White "Brookes, Christopher"]
[Black "Maters, Arthur"]
[Result "1-0"]
[ECO "C10"]
[WhiteElo "2218"]
[BlackElo "2118"]
[Annotator "RC"]
[PlyCount "171"]
[EventDate "2024.10.31"]
[EventType "swiss"]
[EventCountry "NED"]
[SourceTitle "playchess.com"]
[Source "ChessBase"]
[SourceQuality "1"]
[TimeControl "5400+30"]

1. e4 {[%emt 0:00:03]} e6 {[%emt 0:00:04]} 2. d4 {[%emt 0:00:18]} d5 {[%emt 0:00:04]} 3. Nc3 {[%emt 0:00:06]} dxe4 {[%emt 0:00:07]} 4. Nxe4 {[%emt 0:00:09]} Bd7 {[%emt 0:00:03]} 5. Nf3 {[%emt 0:01:22]} Bc6 {[%emt 0:00:06]} 6. Bd3 {[%emt 0:01:04]} Nd7 {[%emt 0:00:06]} 7. O-O {[%emt 0:00:36]} Ngf6 {[%emt 0:00:04]} 8. Nc3 {[%emt 0:02:47]} Be7 {[%emt 0:04:58]} 9. Bf4 {[%emt 0:02:07]} Nh5 {[%emt 0:05:27]} 10. Be3 {[%emt 0:01:38]} Nhf6 {[%emt 0:00:08]} 11. Re1 {[%emt 0:04:05]} O-O {[%emt 0:02:00]} 12. Qe2 {[%emt 0:03:49]} b6 {[%emt 0:03:38]} 13. Rad1 {[%emt 0:04:59]} Bb7 {[%emt 0:02:47]} 14. Ba6 {[%emt 0:06:55]} Qc8 {[%emt 0:02:21]} 15. Bxb7 {[%emt 0:00:18]} Qxb7 {[%emt 0:00:04]} 16. Bg5 {[%emt 0:00:26]} Rfe8 {[%emt 0:03:52]} 17. Ne5 {[%emt 0:05:10]} Rad8 {[%emt 0:20:06]} 18. Qb5 {[%emt 0:07:32]} Nxe5 {[%emt 0:09:12]} 19. dxe5 {[%emt 0:03:15]} Nd5 {[%emt 0:00:47]} 20. Bxe7 {[%emt 0:10:00]} Nxe7 {[%emt 0:01:51]} 21. Rd7 {[%emt 0:05:07]} a6 {[%emt 0:12:11]} 22. Qd3 {[%emt 0:00:56]} Rxd7 {[%emt 0:00:13]} 23. Qxd7 {[%emt 0:00:06]} Qc8 {[%emt 0:00:05]} 24. Rd1 {[%emt 0:01:06]} Ng6 {[%emt 0:00:30]} 25. Qd4 {[%emt 0:00:44]} Qb8 {[%emt 0:03:43]} 26. f4 {[%emt 0:08:25]} c5 {[%emt 0:01:08]} 27. Qe3 {[%emt 0:04:37]} Rd8 {[%emt 0:00:54]} 28. Rd2 {[%emt 0:00:27]} Ne7 {[%emt 0:03:03]} 29. g4 {[%emt 0:00:54]} Nc6 {[%emt 0:06:11]} 30. Ne4 {[%emt 0:01:34]} Rxd2 {[%emt 0:00:18]} 31. Qxd2 {[%emt 0:00:31]} Nd4 {[%emt 0:00:31]} 32. Qd3 {[%emt 0:02:51]} f5 {[%emt 0:02:30]} 33. gxf5 {[%emt 0:01:49]} exf5 {[%emt 0:01:24]} 34. Nd6 {[%emt 0:01:21]} Qa8 {[%emt 0:04:49]} 35. Nxf5 {[%emt 0:08:04]} Nxf5 {[%emt 0:05:01]} 36. Qxf5 {[%emt 0:00:05]} Qf3 {[%emt 0:00:09]} 37. Qe6+ {[%emt 0:00:58]} Kf8 {[%emt 0:00:06]} 38. Qd6+ {[%emt 0:00:08]} Ke8 {[%emt 0:01:04]} 39. Qd2 {[%emt 0:01:02]} g6 {[%emt 0:02:50]} 40. c3 {[%emt 0:02:37]} b5 {[%emt 0:01:25]} 41. a3 {[%emt 0:01:11]} c4 {[%emt 0:01:58]} 42. Qd4 {[%emt 0:00:35]} Qe2 {[%emt 0:00:07]} 43. Qd5 {[%emt 0:03:05]} Qg4+ {[%emt 0:00:58]} 44. Kh1 {[%emt 0:02:08]} Qxf4 {[%emt 0:00:03]} 45. Qg8+ {[%emt 0:00:05]} Qf8 {[%emt 0:00:06]} 46. Qe6+ {[%emt 0:00:04]} Qe7 {[%emt 0:01:21]} 47. Qg8+ {[%emt 0:00:25]} Kd7 {[%emt 0:00:35]} 48. Qd5+ {[%emt 0:00:05]} Kc7 {[%emt 0:00:03]} 49. Kg2 {[%emt 0:00:26]} Qd7 {[%emt 0:00:20]} 50. Qe4 {[%emt 0:04:12]} Qc6 {[%emt 0:00:42]} 51. Kf3 {[%emt 0:00:04]} Qxe4+ {[%emt 0:00:35]} 52. Kxe4 {[%emt 0:00:03]} Kd7 {[%emt 0:00:04]} 53. Kd5 {[%emt 0:00:08]} g5 {[%emt 0:01:50]} 54. e6+ {[%emt 0:00:06]} Ke7 {[%emt 0:00:02]} 55. Ke5 {[%emt 0:00:03]} h5 {[%emt 0:00:32]} 56. Kf5 {[%emt 0:03:00]} g4 {[%emt 0:00:03]} 57. Ke5 {[%emt 0:00:32]} Ke8 {[%emt 0:01:42]} 58. Kf4 {[%emt 0:00:41]} Ke7 {[%emt 0:00:26]} 59. Kf5 {[%emt 0:00:16]} a5 {[%emt 0:00:19]} 60. Ke5 {[%emt 0:00:18]} h4 {[%emt 0:00:52]} 61. Kf4 {[%emt 0:00:04]} g3 {[%emt 0:00:03]} 62. hxg3 {[%emt 0:00:03]} hxg3 {[%emt 0:00:59]} 63. Kxg3 {[%emt 0:00:04]} Kxe6 {[%emt 0:00:03]} 64. Kf4 {[%emt 0:00:14]} Kd5 {[%emt 0:00:48]} 65. Kf5 {[%emt 0:00:33]} Kc5 {[%emt 0:00:22]} 66. Ke4 {[%emt 0:00:24]} a4 {[%emt 0:01:59]} 67. Ke5 {[%emt 0:00:08]} Kc6 {[%emt 0:00:03]} 68. Ke6 {[%emt 0:00:16]} Kc7 {[%emt 0:01:14]} 69. Kd5 {[%emt 0:00:10]} Kb6 {[%emt 0:00:10]} 70. Kd6 {[%emt 0:00:08]} Kb7 {[%emt 0:00:03]} 71. Kc5 {[%emt 0:00:09]} Ka6 {[%emt 0:00:02]} 72. Kc6 {[%emt 0:00:07]} Ka5 {[%emt 0:00:03]} 73. Kb7 {[%emt 0:00:11]} b4 {[%emt 0:00:02]} 74. cxb4+ {[%emt 0:03:13]} Kb5 {[%emt 0:00:03]} 75. Kc7 {[%emt 0:00:48]} c3 {[%emt 0:00:05]} 76. bxc3 {[%emt 0:00:02]} Kc4 {[%emt 0:00:03]} 77. Kc6 {[%emt 0:00:06]} Kxc3 {[%emt 0:00:18]} 78. b5 {[%emt 0:00:03]} Kb3 {[%emt 0:00:03]} 79. b6 {[%emt 0:00:05]} Kxa3 {[%emt 0:00:02]} 80. b7 {[%emt 0:00:05]} Ka2 {[%emt 0:00:03]} 81. b8=Q {[%emt 0:00:06]} a3 {[%emt 0:00:02]} 82. Kc5 {[%emt 0:00:39]} Ka1 {[%emt 0:00:13]} 83. Kc4 {[%emt 0:00:04]} a2 {[%emt 0:00:06]} 84. Kb3 {[%emt 0:00:13]} Kb1 {[%emt 0:00:05]} 85. Ka3+ {[%emt 0:00:04]} Ka1 {[%emt 0:00:03]} 86. Qb2# {[%emt 0:00:05]} 1-0

[Event "Amsterdam Chess Open 2024"]
[Site "Amsterdam"]
[Date "2024.11.02"]
[Round "4.4"]
[White "Stanojevic, Ilija"]
[Black "Stojiljkovic, Stefan"]
[Result "1/2-1/2"]
[ECO "B80"]
[WhiteElo "2197"]
[BlackElo "2122"]
[Annotator "RC"]
[PlyCount "52"]
[EventDate "2024.10.31"]
[EventType "swiss"]
[EventCountry "NED"]
[SourceTitle "playchess.com"]
[Source "ChessBase"]
[SourceQuality "1"]
[TimeControl "5400+30"]

1. e4 {[%emt 0:00:14]} c5 {[%emt 0:00:08]} 2. Nf3 {[%emt 0:00:09]} d6 {[%emt 0:00:06]} 3. d4 {[%emt 0:00:09]} cxd4 {[%emt 0:00:06]} 4. Nxd4 {[%emt 0:00:07]} Nf6 {[%emt 0:00:10]} 5. Nc3 {[%emt 0:00:11]} a6 {[%emt 0:00:08]} 6. f3 {[%emt 0:00:21]} e6 {[%emt 0:00:11]} 7. Be3 {[%emt 0:00:18]} Be7 {[%emt 0:00:27]} 8. Be2 {[%emt 0:00:22]} Nbd7 {[%emt 0:00:18]} 9. Qd2 {[%emt 0:01:21]} Qc7 {[%emt 0:00:45]} 10. O-O {[%emt 0:00:15]} O-O {[%emt 0:00:11]} 11. Rad1 {[%emt 0:01:39]} Ne5 {[%emt 0:00:38]} 12. Rfe1 {[%emt 0:00:19]} Nc4 {[%emt 0:00:40]} 13. Bxc4 {[%emt 0:00:07]} Qxc4 {[%emt 0:00:05]} 14. Qd3 {[%emt 0:00:12]} Qxd3 {[%emt 0:00:22]} 15. cxd3 {[%emt 0:00:06]} Bd7 {[%emt 0:00:32]} 16. Rc1 {[%emt 0:00:14]} Rfc8 {[%emt 0:00:43]} 17. Nce2 {[%emt 0:00:37]} Rxc1 {[%emt 0:00:23]} 18. Rxc1 {[%emt 0:00:12]} Rc8 {[%emt 0:00:18]} 19. Rxc8+ {[%emt 0:00:07]} Bxc8 {[%emt 0:00:05]} 20. Nb3 {[%emt 0:00:23]} Nd7 {[%emt 0:01:11]} 21. Nc3 {[%emt 0:00:19]} Bd8 {[%emt 0:00:40]} 22. Kf2 {[%emt 0:00:21]} b5 {[%emt 0:00:31]} 23. Ke2 {[%emt 0:00:17]} Bb6 {[%emt 0:00:13]} 24. a4 {[%emt 0:00:54]} Bxe3 {[%emt 0:00:58]} 25. Kxe3 {[%emt 0:00:08]} bxa4 {[%emt 0:00:48]} 26. Nxa4 {[%emt 0:00:22]} Kf8 {[%emt 0:00:12]} 1/2-1/2

[Event "Amsterdam Chess Open 2024"]
[Site "Amsterdam"]
[Date "2024.11.02"]
[Round "4.5"]
[White "Van den Doel, Erik"]
[Black "Kumar, Prajit Sai"]
[Result "1/2-1/2"]
[ECO "D05"]
[WhiteElo "2557"]
[BlackElo "2179"]
[Annotator "TA"]
[PlyCount "88"]
[EventDate "2024.10.31"]
[EventType "swiss"]
[EventCountry "NED"]
[SourceTitle "playchess.com"]
[Source "ChessBase"]
[SourceQuality "1"]
[TimeControl "5400+30"]

{[%evp 18,88,10,0,-3,0,-8,0,-14,-7,0,0,0,0,0,-39,0,0,19,18,11,0,0,0,0,0,0,0,0,0,0,0,0,0,0,0,9,8,16,0,0,0,0,0,0,0,7,0,3,7,10,0,2,0,1,0,0,0,0,0,24,2,21,0,0,0,0,0,0,0,0,0,0]} 1. d4 {[%emt 0:00:03]} d5 {[%emt 0:00:19]} 2. Nf3 {[%emt 0:00:10]} e6 {[%emt 0:00:29]} 3. e3 {[%emt 0:02:19]} Nf6 {[%emt 0:00:08]} 4. Bd3 {[%emt 0:00:35]} c5 {[%emt 0:00:07]} 5. c3 {[%emt 0:00:38]} Bd6 {[%emt 0:01:12]} 6. dxc5 {[%emt 0:00:33]} Bxc5 {[%emt 0:00:07]} 7. Nbd2 {[%emt 0:00:09]} Nc6 {[%emt 0:00:35]} 8. O-O {[%emt 0:00:09]} O-O {[%emt 0:00:41]} 9. Qe2 {[%emt 0:01:16]} Qc7 {[%emt 0:01:41]} 10. e4 {[%emt 0:00:39]} b6 {[%emt 0:04:05]} 11. e5 {[%emt 0:04:23]} Ng4 {[%emt 0:00:09]} 12. Bxh7+ {[%emt 0:01:07]} Kxh7 {[%emt 0:00:42]} 13. Ng5+ {[%emt 0:01:00]} Kg8 {[%emt 0:00:07]} 14. Qxg4 {[%emt 0:00:07] [#] Hoping for Qh5.} Qxe5 {[%emt 0:00:23]} 15. Nb3 {[%emt 0:10:12]} Be7 {[%emt 0:23:51]} 16. Nf3 {[%emt 0:12:20]} Qf6 {[%emt 0:05:03]} 17. Qg3 {[%emt 0:04:45]} e5 {[%emt 0:08:02]} 18. Bg5 {[%emt 0:00:36]} Qe6 {[%emt 0:01:04]} 19. Bxe7 {[%emt 0:00:40]} Qxe7 {[%emt 0:00:07]} 20. Rfe1 {[%emt 0:00:04]} f6 {[%emt 0:01:55]} 21. Nbd4 {[%emt 0:05:54]} Qd7 {[%emt 0:06:25]} 22. Nxc6 {[%emt 0:01:12]} Qxc6 {[%emt 0:00:07]} 23. Nh4 {[%emt 0:00:08]} Re8 {[%emt 0:07:08]} 24. f4 {[%emt 0:01:41]} exf4 {[%emt 0:05:50]} 25. Rxe8+ {[%emt 0:12:16]} Qxe8 {[%emt 0:00:08]} 26. Qxf4 {[%emt 0:00:04]} Qe4 {[%emt 0:07:24]} 27. Qg3 {[%emt 0:05:34] [#] aiming for Re1.} Qg4 {[%emt 0:03:45]} 28. Qf2 {[%emt 0:02:00]} Bd7 {[%emt 0:01:20]} 29. Nf3 {[%emt 0:10:24]} Qc4 {[%emt 0:03:21]} 30. Nd4 {[%emt 0:00:31]} Re8 {[%emt 0:01:20]} 31. Qg3 {[%emt 0:02:26]} Qc5 {[%emt 0:01:50]} 32. Rf1 {[%emt 0:01:33]} Qe7 {[%emt 0:00:47]} 33. h3 {[%emt 0:00:17]} (33. a3 {looks sharper.} Kf7 34. h3 Qe3+ 35. Kh2) 33... Qe3+ {[%emt 0:01:13]} 34. Qxe3 {[%emt 0:03:41]} Rxe3 $11 {[%emt 0:00:06][%mdl 4096] Endgame. KRB-KRN} 35. Kf2 {[%emt 0:00:03]} Re4 {[%emt 0:01:03]} 36. Re1 {[%emt 0:00:25]} Rxe1 {[%emt 0:03:59]} 37. Kxe1 {[%emt 0:00:03] KB-KN} Kf7 {[%emt 0:00:20]} 38. Kf2 {[%emt 0:00:22]} Ke7 {[%emt 0:01:20]} 39. Ke3 {[%emt 0:04:30]} Kd6 {[%emt 0:00:43] The position is equal.} 40. Kf4 {[%emt 0:01:45] Threatens to win with Nf5+.} g5+ {[%emt 0:01:17]} 41. Ke3 {[%emt 0:00:05]} a5 {[%emt 0:00:16]} 42. a3 {[%emt 0:00:46]} a4 {[%emt 0:01:24]} 43. Kd2 {[%emt 0:03:29]} Kc5 {[%emt 0:02:15]} 44. Kd3 {[%emt 0:00:04]} Bc8 {[%emt 0:02:47] A balanced but interesting game.   Weighted Error Value: White=0.04 (flawless) /Black=0.04 (flawless) .  Inaccurate:     	White=1     	Black=1      OK:         	White=18    	Black=16     Best:        	White=3     	Black=4} 1/2-1/2